Cogmind - Beta 16 @@@ ROGUE MODE // 2025.11.11 @ 16:04:47 Player: Nika Jay Result: Self-destructed Performance ------------- Evolutions (3) 1500 Regions Visited (6) 1200 Robots Destroyed (54) 270 Value Destroyed (1361) 1361 Prototype IDs (0) 0 Alien Tech Used (0) 0 Bonus (0) 0 TOTAL SCORE: 4331 Bonus ------- None Cogmind --------- Core Integrity 591/700 Matter 259/300 Energy 240/240 System Corruption 0% Temperature Cool (0) Movement Walking (105) Location -7/Factory Parts ------- > --- POWER (1) -------- Nuclear Core > --- PROPULSION (4) --- Aluminum Leg Aluminum Leg Carbon-fiber Leg Carbon-fiber Leg > --- UTILITY (5) ------ Medium Storage Unit Improved Signal Interpreter Seismic Detector Hardened Heavy Armor Plating > --- WEAPON (3) ------- Minigun Gauss Rifle Gauss Rifle > --- INVENTORY (10) --- Improved Ion Engine Aluminum Leg Carbon-fiber Leg Seismic Detector Heavy Assault Rifle Heavy Assault Rifle Gauss Rifle Flak Gun Plasma Cutter Great Axe Peak State ------------ > --- POWER ------------ Nuclear Core > --- PROPULSION ------- Aluminum Leg Aluminum Leg Carbon-fiber Leg Carbon-fiber Leg > --- UTILITY ---------- Medium Storage Unit Improved Signal Interpreter Seismic Detector Hardened Heavy Armor Plating > --- WEAPON ----------- Minigun Gauss Rifle Gauss Rifle > --- INVENTORY -------- Improved Ion Engine Aluminum Leg Carbon-fiber Leg Seismic Detector Heavy Assault Rifle Heavy Assault Rifle Gauss Rifle Flak Gun Plasma Cutter Great Axe [Rating: 37] Favorites ----------- Power Nuclear Core Engine Light Ion Engine Power Core Nuclear Core Propulsion Aluminum Leg Leg Aluminum Leg Utility Seismic Detector Device Seismic Detector Storage Medium Storage Unit Processor Improved Signal Interpreter Protection Reactive Plating Weapon Gauss Rifle Energy Gun Small Laser Ballistic Gun Gauss Rifle Ballistic Cannon Advanced Assault Cannon Launcher Rocket Launcher Build | -11 -10 -10 -10 -9 -8 -7 ------- Run | Yrd Mat Min Exi Min Mat Fac Slots Evolved 6 | . . . . . 4 2 Power . | . . . . . . . Propulsion 2 | . . . . . . 2 Utility 3 | . . . . . 3 . Weapon 1 | . . . . . 1 . Parts Attached 49 | 7 2 . 1 7 23 9 Power 5 | 1 . . . 2 2 . Engine 4 | 1 . . . 2 1 . Core 1 | . . . . . 1 . Reactor . | . . . . . . . Propulsion 11 | 2 . . . 2 4 3 Treads . | . . . . . . . Leg 11 | 2 . . . 2 4 3 Wheel . | . . . . . . . Hover . | . . . . . . . Flight . | . . . . . . . Utility 18 | 2 . . 1 . 13 2 Device 7 | 1 . . . . 5 1 Storage 5 | 1 . . 1 . 3 . Processor 2 | . . . . . 2 . Hackware . | . . . . . . . Protection 4 | . . . . . 3 1 Artifact . | . . . . . . . Weapon 15 | 2 2 . . 3 4 4 Energy Gun 1 | 1 . . . . . . Energy Cannon . | . . . . . . . Ballistic Gun 12 | 1 2 . . 1 4 4 Ballistic Cannon 1 | . . . . 1 . . Launcher 1 | . . . . 1 . . Special Weapon . | . . . . . . . Impact Weapon . | . . . . . . . Slashing Weapon . | . . . . . . . Piercing Weapon . | . . . . . . . Special Melee Weapon . | . . . . . . . Unidentified Prototypes . | . . . . . . . Parts Lost 10 | . . . . 5 3 2 Power 3 | . . . . 2 1 . Propulsion 1 | . . . . 1 . . Utility 1 | . . . . . 1 . Weapon 5 | . . . . 2 1 2 Highest Loss Streak 4 | . . . . 4 2 2 To Critical Strikes . | . . . . . . . Average Backups 8 | 1 5 8 8 6 9 9 Power . | . 1 1 1 . . 1 Propulsion 1 | . . . . . 2 1 Utility 1 | . 3 3 3 3 1 1 Weapon 3 | . 1 4 4 2 4 4 Tool/Special . | . . . . . . . Unused Backups 13 | . . 1 . . 4 8 Power 1 | . . . . . . 1 Propulsion 1 | . . . . . . 1 Utility 3 | . . . . . 2 1 Weapon 7 | . . 1 . . 2 4 Tool/Special 1 | . . . . . . 1 Average Slot Usage (%) 97 | . 95 100 100 98 95 99 Engine 7 | . 14 14 14 13 6 . Core 2 | . . . . . 2 7 Leg 23 | . 28 28 28 27 17 29 Device 16 | . 10 14 14 14 20 14 Storage 10 | . 14 14 14 14 9 7 Processor 3 | . . . . . 4 7 Protection 4 | . . . . . 7 6 Ballistic Gun 25 | . 20 28 28 26 25 23 Peak Build Rating 37 | 7 10 10 10 11 36 37 Average Rating 24 | 6 8 10 10 9 32 34 On Entrance 11 | . 7 10 10 10 11 33 Avg Prop Armor Cover (%) . | . . . . . . . Naked Turns . | . . . . . . . Heaviest Build 53 | 13 17 17 22 24 53 49 Greatest Support 50 | 20 20 20 20 23 25 50 Greatest Overweight (x) 4 | . . . 1 1 4 . Average Overweight (x) . | . . . . . 1 . Largest Inventory Capacity 15 | 8 8 8 10 10 15 10 Average Capacity 9 | 7 8 8 8 10 10 10 Most Carried 10 | 3 8 8 8 9 10 10 Average Carried 8 | 1 5 8 8 6 9 9 Final Capacity 10 | 8 8 8 10 10 10 10 Final Carried 10 | 3 8 8 8 9 10 10 Class Distribution -------------------- 39% | Scavenger-Tank 39% | Mutant 8% | Scientist-Tank 6% | Tank 3% | Gunner Dominant Class ---------------- Mutant | -10/Materials Mutant | -10/Mines Mutant | -10/Exiles Mutant | -9/Mines Scavenger-Tank | -8/Materials Scavenger-Tank | -7/Factory Resources | -11 -10 -10 -10 -9 -8 -7 ----------- Run | Yrd Mat Min Exi Min Mat Fac Matter Collected 1765 | 282 6 . 37 155 872 413 Remotely . | . . . . . . . Salvage Created 2270 | 185 31 . . 285 1235 534 Parts 127 | 14 3 . . 12 72 26 Haulers Intercepted 3 | . . . . . 2 1 Recyclers Shooed 1 | . 1 . . . . . Parts Field Recycled . | . . . . . . . Retrieved Matter . | . . . . . . . Parts Self-Destructed . | . . . . . . . Prevented . | . . . . . . . Parts Restored . | . . . . . . . Kills | -11 -10 -10 -10 -9 -8 -7 ------- Run | Yrd Mat Min Exi Min Mat Fac Combat Hostiles Destroyed 50 | . 2 . . 19 23 6 Guns 36 | . 2 . . 5 23 6 AOE 14 | . . . . 14 . . Classes Destroyed 11 | 2 1 . . 3 4 1 Builder 2 | . . . . . 1 1 Tunneler 5 | 4 . . . . 1 . Hauler 3 | . . . . . 2 1 Recycler 7 | 1 . . . 1 3 2 Watcher 2 | . . . . . 2 . Swarmer 12 | . 2 . . . 10 . Grunt 14 | . . . . 3 10 1 Duelist 1 | . . . . 1 . . Sentry 4 | . . . . . 3 1 Hunter 4 | . . . . . . 4 Assembled 15 | . . . . 15 . . Best Kill Streak 16 | 2 2 . . 16 8 5 Combat Bots Only 15 | . 2 . . 15 6 2 Max Kills in Single Turn 5 | 1 1 . . 5 3 1 Gunslinging 1 | . . . . 1 1 . Exploded 5 | . . . . 5 . . Melee . | . . . . . . . Uniques/NPCs Destroyed . | . . . . . . . Combat | -11 -10 -10 -10 -9 -8 -7 -------- Run | Yrd Mat Min Exi Min Mat Fac Hostile Shots Fired 223 | . 10 . . 35 73 105 Missed 59 | . 5 . . 8 16 30 Hits 164 | . 5 . . 27 57 75 Melee 5 | . . . . 5 . . Projectile 159 | . 5 . . 22 57 75 AOE 8 | . . . . 8 . . Critical Strikes 2 | . . . . 1 1 . Damage Taken 2325 | . 33 . . 768 713 811 Core 279 | . . . . 91 79 109 Absorbed by Shields . | . . . . . . . Ignored by Resistances 218 | . . . . . 46 172 Core Remaining (%) 82 | 100 . . . 63 85 . Volleys Fired 116 | 12 6 . . 19 48 31 Largest 3 | 2 2 . . 2 3 3 Hottest 84 | 60 60 . . 46 84 84 Shots Fired 304 | 24 10 . . 34 143 93 Gun 300 | 24 10 . . 30 143 93 Cannon . | . . . . . . . Launcher 4 | . . . . 4 . . Special . | . . . . . . . Kinetic 284 | 12 6 . . 30 143 93 Thermal 16 | 12 4 . . . . . Explosive 4 | . . . . 4 . . Electromagnetic . | . . . . . . . Robot Hit Streak 14 | 8 6 . . 6 10 14 Robot Miss Streak 3 | 1 2 . . 3 3 2 Penetration Max 1 | . . . . . 1 1 Secondary Targets 6 | . . . . 1 4 1 Max Gunslinging Chain 1 | . . . . 1 1 1 Shots Hit Robots 199 | 17 6 . . 22 85 69 Core Hits 111 | 8 3 . . 34 44 22 Critical Kills 4 | . . . . . 3 1 Critical Parts Destroyed 4 | . . . . . 2 2 Critical Strikes 8 | . . . . . 5 3 Destroy 8 | . . . . . 5 3 Melee Attacks . | . . . . . . . Impact . | . . . . . . . Slashing . | . . . . . . . Piercing . | . . . . . . . Sneak Attacks . | . . . . . . . Combat Hostiles . | . . . . . . . Follow-up Attacks . | . . . . . . . Damage Inflicted 4460 | 171 60 . . 1307 1872 1050 Guns 3444 | 162 60 . . 325 1866 1031 Cannons . | . . . . . . . Explosions 965 | . . . . 965 . . Melee . | . . . . . . . Ramming 51 | 9 . . . 17 6 19 Kinetic 3312 | 65 25 . . 325 1866 1031 Thermal 132 | 97 35 . . . . . Explosive 965 | . . . . 965 . . Electromagnetic . | . . . . . . . Impact . | . . . . . . . Slashing . | . . . . . . . Piercing . | . . . . . . . Highest Corruption 1 | . . . . . 1 . Average Corruption 1 | . . . . . 1 . Corruption Purged . | . . . . . . . Corruption Blocked . | . . . . . . . Effects 3 | . . . . . 3 . Message Errors 1 | . . . . . 1 . Data Loss (minor) 1 | . . . . . 1 . Weapon Failures 1 | . . . . . 1 . Overload Shots . | . . . . . . . Overflow Damage 24 | . . . . 24 . . Projectiles . | . . . . . . . Explosions 24 | . . . . 24 . . Melee . | . . . . . . . Knockbacks 1 | 1 . . . . . . Impact 1 | 1 . . . . . . Kinetic . | . . . . . . . Secondary . | . . . . . . . Self-Inflicted Damage 68 | . . . . 68 . . Shots 2 | . . . . 2 . . Rammed . | . . . . . . . Targets Rammed 11 | 1 . 1 . 3 2 4 Kicked 11 | 1 . 1 . 3 2 4 Crushed . | . . . . . . . Highest Temperature 40 | 40 20 . . 24 21 30 Average Temperature 14 | 20 15 . . 8 9 14 Received Heat Transfer 456 | . . . . 36 306 114 Siege Activations . | . . . . . . . Martial Activations . | . . . . . . . Shielding Activations . | . . . . . . . Robots Disrupted . | . . . . . . . Combat Hostiles . | . . . . . . . Robots Corrupted . | . . . . . . . Combat Hostiles . | . . . . . . . Parts Fried . | . . . . . . . Impact Corruptions . | . . . . . . . Robots Melted . | . . . . . . . Combat Hostiles . | . . . . . . . Parts Melted . | . . . . . . . Heat Transferred 300 | 225 75 . . . . . Parts Sabotaged . | . . . . . . . Parts Stolen . | . . . . . . . Parts Stripped . | . . . . . . . Power Chain Reactions . | . . . . . . . Alert | -11 -10 -10 -10 -9 -8 -7 ------- Run | Yrd Mat Min Exi Min Mat Fac Maximum Alert Level 1 | . . . . . 1 . Low Security (%) 96 | 100 100 100 . 100 93 100 Level 1 3 | . . . . . 6 . Level 2 . | . . . . . . . Level 3 . | . . . . . . . Level 4 . | . . . . . . . Level 5 . | . . . . . . . High Security . | . . . . . . . Max Security . | . . . . . . . Peak Influence 249 | 10 40 5 . 52 249 110 Initial 13 | . . 5 . . 13 9 Average 47 | 1 16 . . 6 84 27 Influence Increases 1161 | 25 64 . . 139 723 210 Destroy 0b10 Robot/C 700 | . 40 . . 80 460 120 Destroy 0b10 Robot/NC 95 | 25 . . . 5 45 20 Destroy Leader 160 | . . . . 20 88 52 Successful Hack 57 | . 9 . . . 32 16 Disable Machine 30 | . . . . . 30 . Destroy Structure 29 | . . . . 19 8 2 Lose Combat Pursuer 90 | . 15 . . 15 60 . Influence Decreases 1110 | 25 49 15 . 105 735 181 Entered New Map 44 | . . 10 . . 21 13 Time Decay 757 | 25 49 5 . 55 465 158 Lost Part 80 | . . . . 50 20 10 Purge Threat 229 | . . . . . 229 . Squads Dispatched 4 | . . . . 1 1 2 Investigation 1 | . . . . 1 . . Extermination 1 | . . . . . . 1 Reinforcement 2 | . . . . . 1 1 Assault . | . . . . . . . Garrison . | . . . . . . . Intercept . | . . . . . . . Searches Triggered . | . . . . . . . Construction Impeded . | . . . . . . . Haulers Reinforced . | . . . . . . . Active Scanning Responses . | . . . . . . . Cargo Convoy Interrupts . | . . . . . . . Stealth | -11 -10 -10 -10 -9 -8 -7 --------- Run | Yrd Mat Min Exi Min Mat Fac Distress Signals 5 | . 1 . . . 4 . Communications Jammed . | . . . . . . . Distress Signals . | . . . . . . . Times Spotted 79 | . 3 . . 28 41 7 Peak Tracking Total 20 | . 3 . . 20 8 2 Tactical Retreats 6 | . 1 . . 2 3 . Traps | -11 -10 -10 -10 -9 -8 -7 ------- Run | Yrd Mat Min Exi Min Mat Fac Traps Triggered 3 | . . . . . 2 1 Indirectly . | . . . . . . . Trap Hack Attempts . | . . . . . . . Triggered . | . . . . . . . Disarmed . | . . . . . . . Reprogrammed . | . . . . . . . Reused . | . . . . . . . Traps Extracted . | . . . . . . . Installed . | . . . . . . . Triggered . | . . . . . . . Machines | -11 -10 -10 -10 -9 -8 -7 ---------- Run | Yrd Mat Min Exi Min Mat Fac Machines Disabled 2 | . . . . . 2 . Max in Single Turn 1 | . . . . . 1 . Garrison Access 1 | . . . . . 1 . Machines Repaired . | . . . . . . . Machines Dismantled . | . . . . . . . Machines Sabotaged . | . . . . . . . Overloaded Fab Kills . | . . . . . . . Hacking | -11 -10 -10 -10 -9 -8 -7 --------- Run | Yrd Mat Min Exi Min Mat Fac Machines Accessed 12 | . 1 . 1 1 7 2 Terminals 6 | . 1 . . . 4 1 Fabricators . | . . . . . . . Repair Stations 1 | . . . . . . 1 Recycling Units . | . . . . . . . Scanalyzers 2 | . . . . . 2 . Garrison Access 1 | . . . . . 1 . Total Hacks 35 | . 5 . 4 1 21 4 Successful 21 | . 3 . 4 1 12 1 Failed 13 | . 2 . . . 8 3 Catastrophic 5 | . . . . . 5 . Database Lockouts 1 | . . . . . 1 . Manual 14 | . 5 . . . 6 3 Terminals 19 | . 5 . . . 11 3 Fabricators . | . . . . . . . Repair Stations 1 | . . . . . . 1 Recycling Units . | . . . . . . . Scanalyzers 8 | . . . . . 8 . Garrison Access 2 | . . . . . 2 . Terminal Hacks 9 | . . . 4 1 4 . Record 4 | . . . 4 . . . Open Door 1 | . . . . 1 . . Branch Access Points 1 | . . . . . 1 . Unreport Threat 3 | . . . . . 3 . Fabricator Hacks . | . . . . . . . Repair Station Hacks . | . . . . . . . Recycling Unit Hacks . | . . . . . . . Scanalyzer 7 | . . . . . 7 . Insert Component 1 | . . . . . 1 . Analyze 1 | . . . . . 1 . Retrieve Study 5 | . . . . . 5 . Garrison Access Hacks 1 | . . . . . 1 . Seal Access 1 | . . . . . 1 . Unauthorized Hacks 4 | . 3 . . . . 1 Terminals 4 | . 3 . . . . 1 Botnet 1 | . 1 . . . . . Operators 2 | . 1 . . . . 1 Skim 1 | . 1 . . . . . Fabricators . | . . . . . . . Repair Stations . | . . . . . . . Recycling Units . | . . . . . . . Scanalyzers . | . . . . . . . Garrison Access . | . . . . . . . Data Cores Recovered . | . . . . . . . Used . | . . . . . . . Hacking Detections 9 | . 1 . . . 6 2 Full Trace Events 1 | . . . . . 1 . Feedback Events . | . . . . . . . Feedback Blocked . | . . . . . . . Robot Schematics Acquired . | . . . . . . . Robots Built . | . . . . . . . Authchips . | . . . . . . . Time . | . . . . . . . Total Robot Build Rating . | . . . . . . . Part Schematics Acquired 1 | . . . . . 1 . Parts Built . | . . . . . . . Authchips . | . . . . . . . Time . | . . . . . . . Total Part Build Rating . | . . . . . . . Part Studies Acquired 5 | . . . . . 5 . Parts Repaired . | . . . . . . . Time . | . . . . . . . Parts Recycled . | . . . . . . . Recycled Matter . | . . . . . . . Retrieved Matter . | . . . . . . . Retrieved Components . | . . . . . . . Parts Scanalyzed 1 | . . . . . 1 . Part Schematics Acquired 1 | . . . . . 1 . Parts Damaged . | . . . . . . . Bothacking | -11 -10 -10 -10 -9 -8 -7 ------------ Run | Yrd Mat Min Exi Min Mat Fac Used RIF Installer . | . . . . . . . Robots Hacked . | . . . . . . . Non-combat . | . . . . . . . Combat . | . . . . . . . Robot Hacks Applied . | . . . . . . . Relay Couplers Released . | . . . . . . . Fabnet Peak Effective % . | . . . . . . . Robots Rewired . | . . . . . . . Allies Hacked . | . . . . . . . Hacks Repelled . | . . . . . . . Allies | -11 -10 -10 -10 -9 -8 -7 -------- Run | Yrd Mat Min Exi Min Mat Fac Total Allies 2 | . . 2 . . . . Largest Group 2 | . . 2 2 . . . Highest-Rated Group 50 | . . 50 50 . . . Highest-Rated Ally 31 | . . 31 31 . . . Total Orders . | . . . . . . . Ally Attacks . | . . . . . . . Total Damage . | . . . . . . . Kills . | . . . . . . . Allies Corrupted . | . . . . . . . Allies Melted . | . . . . . . . Intel | -11 -10 -10 -10 -9 -8 -7 ------- Run | Yrd Mat Min Exi Min Mat Fac Active Infowar (turns) 3094 | 70 103 193 274 523 1301 630 Seismic 3094 | 70 103 193 274 523 1301 630 Robot Analysis Total . | . . . . . . . Derelict Logs Recovered 2 | . . . . 2 . . Drone Launches . | . . . . . . . Drone Recoveries . | . . . . . . . Exploration | -11 -10 -10 -10 -9 -8 -7 ------------- Run | Yrd Mat Min Exi Min Mat Fac Turns Passed 3311 | 121 135 193 274 523 1435 630 Spaces Moved 2001 | 64 91 160 201 370 631 484 Core 10 | 10 . . . . . . Treads . | . . . . . . . Legs 1991 | 54 91 160 201 370 631 484 Wheels . | . . . . . . . Hover . | . . . . . . . Flight . | . . . . . . . Fastest Speed 50 | 50 120 120 120 120 120 105 Average Speed 137 | 109 120 120 136 122 182 105 Slowest Speed 385 | 120 120 120 190 190 385 105 Overloaded Moves . | . . . . . . . Propulsion Burnouts . | . . . . . . . Robots Hopped . | . . . . . . . Potential Cave-ins . | . . . . . . . Cave-ins Triggered . | . . . . . . . Exploration Rate (%) 37 | 4 19 39 56 78 51 14 Regions Visited 6 Branch Regions 3 Pre-discovered Areas 2 | . . . 1 1 . . Known Exits Taken 1 | . . . . . 1 . Unknown Exits Taken 5 | 1 1 1 1 1 . . Scrap Searched . | . . . . . . . Spaces Dug . | . . . . . . . Terrain Destroyed 33 | . . . . 30 2 1 Melee . | . . . . . . . Projectile 2 | . . . . . 2 . AOE 30 | . . . . 30 . . Terrain Rammed . | . . . . . . . Walls Destroyed . | . . . . . . . Machines Disabled . | . . . . . . . Actions | -11 -10 -10 -10 -9 -8 -7 --------- Run | Yrd Mat Min Exi Min Mat Fac Total 2321 | 90 107 162 202 410 812 538 Wait 84 | 4 3 . . . 75 2 Move 1995 | 63 90 159 200 369 630 484 Hop . | . . . . . . . Pick Up 27 | 3 4 1 . 5 12 2 Fast Attach 21 | 7 . . . 3 9 2 Attach 14 | . 1 . . 4 5 4 Detach 5 | . 1 . . 2 2 . Swap 22 | . 2 . 1 2 12 5 Drop 26 | . . 1 1 3 17 4 Fire 116 | 12 6 . . 19 48 31 Melee . | . . . . . . . Ram . | . . . . . . . Kick 11 | 1 . 1 . 3 2 4 Crush . | . . . . . . . Escape Stasis . | . . . . . . . Rewire . | . . . . . . . Trap . | . . . . . . . Miscellaneous . | . . . . . . . Route ------- -11/Scrapyard -10/Materials -10/Mines -10/Exiles -9/Mines -8/Materials -7/Factory History --------- Turn | Location | Event 7 | -11/Scrapyard | Discovered new exit (range 15) 122 | -11/Scrapyard | Entered Materials 244 | -10/Materials | Discovered new exit (range 4) 257 | -10/Materials | Entered Mines 264 | -10/Mines | Received a Rocket Launcher from a helpful Derelict 278 | -10/Mines | Found a hidden stash of uninstalled traps 300 | -10/Mines | Found a damaged Exp. Sensor Array with a note attached 307 | -10/Mines | Build established: Mutant 444 | -10/Mines | Deemed a non-threat by the Exiles lab entrance 445 | -10/Mines | Discovered new exit (range 5) 450 | -10/Mines | Entered Exiles 450 | -10/Exiles | Accompanied by 2 allies 479 | -10/Exiles | Met 8R-AWN 480 | -10/Exiles | Led the pair of lost Derelicts to a safe place 506 | -10/Exiles | Met EX-HEX 539 | -10/Exiles | Met EX-BIN 603 | -10/Exiles | Met EX-DEC 604 | -10/Exiles | Learned location of Zion (-6) 709 | -10/Exiles | Discovered new exit (range 10) 724 | -10/Exiles | Entered Mines 753 | -9/Mines | Assembled infested the area 815 | -9/Mines | Lost 4 parts (1p1n2w) 817 | -9/Mines | Destroyed 15 combat bots 1050 | -9/Mines | A weapon hastily lodged in a ceiling crevice suddenly fell to the ground 1179 | -9/Mines | Discovered new exit (range 8) 1196 | -9/Mines | Met a Derelict shopkeep closing up shop 1247 | -9/Mines | Entered Materials 1247 | -8/Materials | Evolved 4 slots: Utility x3, Weapon x1 1791 | -8/Materials | Build established: Scavenger-Tank 1979 | -8/Materials | Discovered new exit (range 16) 2018 | -8/Materials | Identified exit to Factory 2526 | -8/Materials | Central database locked down 2682 | -8/Materials | Entered Factory 2682 | -7/Factory | Evolved 2 slots: Propulsion x2 3312 | -7/Factory | Self-destructed Last Messages --------------- 03185_ Acquired 26 matter. 03187_ K-01 Serf collects debris. 03188_ U-05 Engineer works on Assembly Bed. 03190_ K-01 Serf collects debris. 03249_ Dropped Reactive Plating. 03250_ Dropped Imp. Heat Sink. 03250_ Acquired Hrd. Heavy Armor Plating. 03280_ K-01 Serf cleans the Repair Station. 03286_ Slug penetrates R-06 Scavenger. 03286_ R-06 Scavenger destroyed. 03289_ K-01 Serf collects debris. 03289_ K-01 Serf cleans the Power Conduit. 03292_ K-01 Serf collects debris. 03293_ Kicked K-01 Serf out of the way. 03294_ Acquired 50 matter. 03294_ Kicked K-01 Serf out of the way. 03296_ Connecting with Repair Station... 03306_ ALERT: Potential suspicious activity detected, Programmers report to Factory Zone 2H. Map ----- +----------------------------------------------------+ | ????????????????????????????# #??# #??# | | ??????????????????????????### #### ########### | | ??????????????????????????# | | ??????????????????????????# | | ???????????????????????? + | | ??????????????????????????# o | | ??????????????????????????# | | ??????????????????????????# ################## | | ??????????????????????????# # ????????? | | ??????????????????????????# # """""""""??????? | | ??????????????????????????# + !#???? | | ??????????????????????????# # """""""""??????? | | ??????????????????????????# # ????????? | | ??????????????????????????# #?#######????????? | | ???????????????????????######+##########?????????? | | ???????????????????????# """" #?????????? | | ???????????????????????# ""R"! #?????????? | | ???????????????????????# "" " #?????????? | | ???????????????????????# = #?????????? | | ???????????????????????# #?????????? | | ???????????????????????# """"""""" #?????????? | | ???????????????????????# #?????????? | | ???????????????????????# """"""""" #?????????? | | ???????????????????????# #?????????? | | ???????????????????????# #?????????? | | ???????????????????????##@##############?????????? | | ????????????????????????# #??????????????????????? | | ????????????????????????# #??????????????????????? | | ????????????????????????# #??????????????????????? | | ??????????????????????? ?????????????????????? | | ????????????????????? ???????????????????? | | ????????????o?????? +??????????????????? | | ????????????????? #??????????????????? | | ??????????????? #??????????????????? | | ??????????????######" ####### #??????????????????? | | ???????????????????#"T??????? #??????????????????? | | ???????????????????##?????????#??????????????????? | | ?????????????????????????????????????????????????? | | ?????????????????????????????????????????????????? | | ?????????????????????????????????????????????????? | | ?????????????????????????????????????????????????? | | ?????????????????????????????????????????????????? | | ?????????????????????????????????????????????????? | | ?????????????????????????????????????????????????? | | ?????????????????????????????????????????????????? | | ?????????????????????????????????????????????????? | | ?????????????????????????????????????????????????? | | ?????????????????????????????????????????????????? | | ?????????????????????????????????????????????????? | | ?????????????????????????????????????????????????? | +----------------------------------------------------+ Best States ------------- Heat Dissipation 53 Energy Generation 18 Energy Capacity 265 Matter Stores 300 Matter Capacity 300 Sight Range 16 Terrain Scan Density 10 Armor Coverage 600 Resistance: KI 20 Evasion (%) 55 Targeting Accuracy 5 Recoil Reduction 4 Item Schematics ----------------- Plasma Cutter | -8/Materials | Scanalyzed Robot Schematics ------------------ None Fabricated ------------ Nothing Repaired ---------- Nothing Studied --------- Gauss Rifle | -8/Materials | Hacked Aluminum Leg | -8/Materials | Hacked Carbon-fiber Leg | -8/Materials | Hacked Nuclear Core | -8/Materials | Hacked Minigun | -8/Materials | Hacked Alien Tech Used ----------------- None Achievements -------------- Exterminator Challenges ------------ None Game ------ Seed SigixSpreadBiocell Manual? 0 Play Time 00:29:16 Cumulative 167.1 hours Start 2025.11.11 @ 15:06:07 End 2025.11.11 @ 16:04:47 Sessions 3 Manual Loads 0 Difficulty Rogue Special Mode None Game No. 86 Rogue 82 Adventurer 2 Explorer 2 Win Type - Total 2 Types 1/0/1/0/0/0/0/0/0/0 Lore% 65 Gallery% 64 Achievement% 37 Wizard Run 0 Options --------- Layout 0 ASCII 0 Keyboard 1 Movement Arrows Keybinds 0 Fullscreen 2 Font 18/Terminus Map View 76x50 Zoom Use 0% Tactical HUD 1 Map Filters NONE Filters NONE Steam 1 RUN: 1d1e37f9-b989-48a5-9b70-648960c1a396